[Event "January 2 Late 2024"]
[Site "https://www.chess.com"]
[Date "2024.01.02"]
[Round "3"]
[White "Makaraci, Tunahan"]
[Black "Santos Latasa, Jaime"]
[Result "1-0"]
[Board "73"]
[TimeControl "180+1"]
[WhiteFideId "6356559"]
[BlackFideId "2293307"]
[WhiteElo "2504"]
[BlackElo "2922"]
[WhiteTeam "TUR"]
[BlackTeam "ESP"]
[WhiteClock "0:00:09"]
[BlackClock "0:00:19"]

1. e4 {[%clk 0:03:00]}  c5 {[%clk 0:02:59]} 2. c3 {[%clk 0:03:01]}  Nf6 {[%clk 0:02:56]} 3. e5 {[%clk 0:03:01]}  Nd5 {[%clk 0:02:56]} 4. Nf3 {[%clk 0:03:01]}  Nc6 {[%clk 0:02:54]} 5. Bc4 {[%clk 0:03:00]}  Nb6 {[%clk 0:02:54]} 6. Bb3 {[%clk 0:03:00]}  d5 {[%clk 0:02:53]} 7. exd6 {[%clk 0:03:00]}  Qxd6 {[%clk 0:02:53]} 8. O-O {[%clk 0:03:01]}  c4 {[%clk 0:02:51]} 9. Bc2 {[%clk 0:03:00]}  Bg4 {[%clk 0:02:48]} 10. Re1 {[%clk 0:03:00]}  e6 {[%clk 0:02:46]} 11. Qe2 {[%clk 0:03:00]}  Qd5 {[%clk 0:02:43]} 12. Be4 {[%clk 0:02:56]}  Qc5 {[%clk 0:02:43]} 13. b4 {[%clk 0:02:52]}  cxb3 {[%clk 0:02:29]} 14. axb3 {[%clk 0:02:50]}  Be7 {[%clk 0:02:28]} 15. Ba3 {[%clk 0:02:32]}  Qh5 {[%clk 0:02:22]} 16. Bxe7 {[%clk 0:02:23]}  Kxe7 {[%clk 0:02:21]} 17. h3 {[%clk 0:02:16]}  Bxf3 {[%clk 0:02:19]} 18. Bxf3 {[%clk 0:02:15]}  Qc5 {[%clk 0:02:19]} 19. d4 {[%clk 0:02:13]}  Qd6 {[%clk 0:02:18]} 20. Nd2 {[%clk 0:02:11]}  Rhd8 {[%clk 0:02:11]} 21. Ne4 {[%clk 0:02:08]}  Qc7 {[%clk 0:02:11]} 22. Nc5 {[%clk 0:02:05]}  Nd7 {[%clk 0:02:02]} 23. Nxd7 {[%clk 0:01:44]}  Rxd7 {[%clk 0:01:58]} 24. d5 {[%clk 0:01:35]}  Nd8 {[%clk 0:01:57]} 25. dxe6 {[%clk 0:01:21]}  Nxe6 {[%clk 0:01:58]} 26. Bg4 {[%clk 0:01:22]}  Rd6 {[%clk 0:01:57]} 27. Qe5 {[%clk 0:01:18]}  Kf8 {[%clk 0:01:41]} 28. Bxe6 {[%clk 0:01:12]}  fxe6 {[%clk 0:01:42]} 29. Ra4 {[%clk 0:00:59]}  Kg8 {[%clk 0:01:36]} 30. Rh4 {[%clk 0:00:41]}  Rc8 {[%clk 0:01:32]} 31. c4 {[%clk 0:00:40]}  Rb6 {[%clk 0:01:24]} 32. Qe4 {[%clk 0:00:38]}  g6 {[%clk 0:01:19]} 33. Rf4 {[%clk 0:00:36]}  Rd8 {[%clk 0:01:16]} 34. Rf6 {[%clk 0:00:35]}  Re8 {[%clk 0:01:13]} 35. Qg4 {[%clk 0:00:33]}  Qe7 {[%clk 0:01:08]} 36. Qg5 {[%clk 0:00:22]}  e5 {[%clk 0:00:59]} 37. Rf5 {[%clk 0:00:13]}  Qxg5 {[%clk 0:00:49]} 38. Rxg5 {[%clk 0:00:14]}  Rxb3 {[%clk 0:00:50]} 39. Rgxe5 {[%clk 0:00:14]}  Rxe5 {[%clk 0:00:50]} 40. Rxe5 {[%clk 0:00:14]}  Kf7 {[%clk 0:00:50]} 41. Rc5 {[%clk 0:00:14]}  Kf6 {[%clk 0:00:48]} 42. Rc7 {[%clk 0:00:15]}  a5 {[%clk 0:00:48]} 43. Rxh7 {[%clk 0:00:12]}  a4 {[%clk 0:00:48]} 44. Rh8 {[%clk 0:00:13]}  a3 {[%clk 0:00:47]} 45. Ra8 {[%clk 0:00:13]}  Ke5 {[%clk 0:00:48]} 46. Kh2 {[%clk 0:00:13]}  Kd4 {[%clk 0:00:49]} 47. g4 {[%clk 0:00:11]}  Kxc4 {[%clk 0:00:49]} 48. h4 {[%clk 0:00:12]}  Kc3 {[%clk 0:00:48]} 49. h5 {[%clk 0:00:12]}  Kb2 {[%clk 0:00:49]} 50. h6 {[%clk 0:00:10]}  b5 {[%clk 0:00:22]} 51. h7 {[%clk 0:00:10]}  b4 {[%clk 0:00:22]} 52. h8=Q+ {[%clk 0:00:10]}  Rc3 {[%clk 0:00:23]} 53. Rb8 {[%clk 0:00:09]}  b3 {[%clk 0:00:19]} 54. Rc8 {[%clk 0:00:09]} 1-0

[Event "January 2 Late 2024"]
[Site "https://www.chess.com"]
[Date "2024.01.02"]
[Round "3"]
[White "N_Mullodzhanov"]
[Black "Kovalev, Vladislav"]
[Result "0-1"]
[Board "74"]
[TimeControl "180+1"]
[BlackFideId "13504398"]
[WhiteElo "2503"]
[BlackElo "2920"]
[BlackTeam "FID"]
[WhiteClock "0:01:46"]
[BlackClock "0:01:19"]

1. e4 {[%clk 0:03:00]}  e5 {[%clk 0:03:00]} 2. Nf3 {[%clk 0:03:01]}  Nc6 {[%clk 0:03:00]} 3. Bc4 {[%clk 0:03:00]}  Bc5 {[%clk 0:03:00]} 4. c3 {[%clk 0:02:59]}  Nf6 {[%clk 0:03:00]} 5. d4 {[%clk 0:02:57]}  exd4 {[%clk 0:03:01]} 6. cxd4 {[%clk 0:02:58]}  Bb4+ {[%clk 0:03:02]} 7. Nc3 {[%clk 0:02:59]}  Nxe4 {[%clk 0:02:59]} 8. O-O {[%clk 0:02:59]}  Bxc3 {[%clk 0:02:57]} 9. bxc3 {[%clk 0:02:57]}  d5 {[%clk 0:02:57]} 10. Bd3 {[%clk 0:02:57]}  O-O {[%clk 0:02:57]} 11. Re1 {[%clk 0:02:56]}  Nxc3 {[%clk 0:02:51]} 12. Bxh7+ {[%clk 0:02:53]}  Kxh7 {[%clk 0:02:48]} 13. Ng5+ {[%clk 0:02:50]}  Qxg5 {[%clk 0:02:46]} 14. Qc2+ {[%clk 0:02:45]}  Qg6 {[%clk 0:02:44]} 15. Qxc3 {[%clk 0:02:45]}  Bf5 {[%clk 0:02:43]} 16. Bf4 {[%clk 0:02:43]}  Rae8 {[%clk 0:02:36]} 17. Bxc7 {[%clk 0:02:41]}  Re4 {[%clk 0:02:32]} 18. Re3 {[%clk 0:02:37]}  Rfe8 {[%clk 0:02:21]} 19. Rg3 {[%clk 0:02:36]}  Rg4 {[%clk 0:02:18]} 20. Rh3+ {[%clk 0:02:34]}  Kg8 {[%clk 0:02:18]} 21. Rg3 {[%clk 0:02:29]}  Nxd4 {[%clk 0:02:11]} 22. Rxg4 {[%clk 0:02:28]}  Ne2+ {[%clk 0:01:50]} 23. Kh1 {[%clk 0:02:27]}  Nxc3 {[%clk 0:01:45]} 24. Rxg6 {[%clk 0:02:26]}  Bxg6 {[%clk 0:01:43]} 25. Rc1 {[%clk 0:02:17]}  Nxa2 {[%clk 0:01:41]} 26. Ra1 {[%clk 0:02:16]}  Nc3 {[%clk 0:01:39]} 27. h4 {[%clk 0:02:15]}  d4 {[%clk 0:01:40]} 28. Rxa7 {[%clk 0:02:12]}  Nb5 {[%clk 0:01:38]} 29. Rxb7 {[%clk 0:02:11]}  Nxc7 {[%clk 0:01:38]} 30. Rxc7 {[%clk 0:02:12]}  Re4 {[%clk 0:01:30]} 31. g3 {[%clk 0:02:06]}  Re1+ {[%clk 0:01:30]} 32. Kg2 {[%clk 0:02:05]}  Be4+ {[%clk 0:01:30]} 33. Kh3 {[%clk 0:02:03]}  f5 {[%clk 0:01:25]} 34. g4 {[%clk 0:01:59]}  f4 {[%clk 0:01:24]} 35. g5 {[%clk 0:01:58]}  Bf3 {[%clk 0:01:23]} 36. Rc8+ {[%clk 0:01:49]}  Kh7 {[%clk 0:01:23]} 37. g6+ {[%clk 0:01:49]}  Kxg6 {[%clk 0:01:22]} 38. Rc6+ {[%clk 0:01:47]}  Kh7 {[%clk 0:01:19]} 39. Rh6+ {[%clk 0:01:45]}  gxh6 {[%clk 0:01:18]} 40. h5 {[%clk 0:01:46]}  Rh1# {[%clk 0:01:19]} 0-1

[Event "January 2 Late 2024"]
[Site "https://www.chess.com"]
[Date "2024.01.02"]
[Round "3"]
[White "Dobre, Claudiu-Cristian"]
[Black "Tari, Aryan"]
[Result "0-1"]
[Board "75"]
[TimeControl "180+1"]
[WhiteFideId "1211854"]
[BlackFideId "1510045"]
[WhiteElo "2503"]
[BlackElo "2906"]
[WhiteTeam "ROU"]
[BlackTeam "NOR"]
[WhiteClock "0:00:00"]
[BlackClock "0:00:05"]

1. d4 {[%clk 0:03:00]}  Nf6 {[%clk 0:02:58]} 2. Nf3 {[%clk 0:03:01]}  g6 {[%clk 0:02:59]} 3. c4 {[%clk 0:03:00]}  Bg7 {[%clk 0:02:59]} 4. Nc3 {[%clk 0:03:01]}  d5 {[%clk 0:02:58]} 5. Bf4 {[%clk 0:03:00]}  O-O {[%clk 0:02:57]} 6. Rc1 {[%clk 0:02:59]}  dxc4 {[%clk 0:02:40]} 7. e3 {[%clk 0:02:59]}  c5 {[%clk 0:02:40]} 8. dxc5 {[%clk 0:02:53]}  Qxd1+ {[%clk 0:02:23]} 9. Rxd1 {[%clk 0:02:45]}  Na6 {[%clk 0:02:16]} 10. c6 {[%clk 0:02:35]}  bxc6 {[%clk 0:02:12]} 11. Bxc4 {[%clk 0:02:34]}  Nb4 {[%clk 0:02:00]} 12. Ne5 {[%clk 0:01:57]}  Bb7 {[%clk 0:01:15]} 13. O-O {[%clk 0:01:40]}  Nbd5 {[%clk 0:01:13]} 14. Na4 {[%clk 0:01:27]}  Ne4 {[%clk 0:00:55]} 15. Nd7 {[%clk 0:01:19]}  Rfd8 {[%clk 0:00:50]} 16. Ndc5 {[%clk 0:01:13]}  Nxc5 {[%clk 0:00:21]} 17. Nxc5 {[%clk 0:01:12]}  Nxf4 {[%clk 0:00:18]} 18. exf4 {[%clk 0:00:58]}  Rdb8 {[%clk 0:00:12]} 19. b3 {[%clk 0:00:35]}  Bf8 {[%clk 0:00:07]} 20. Rd7 {[%clk 0:00:18]}  Bc8 {[%clk 0:00:07]} 21. Rc7 {[%clk 0:00:19]}  Bf5 {[%clk 0:00:04]} 22. Rxc6 {[%clk 0:00:15]}  Rc8 {[%clk 0:00:04]} 23. Rxc8 {[%clk 0:00:15]}  Rxc8 {[%clk 0:00:05]} 24. Na4 {[%clk 0:00:12]}  Rd8 {[%clk 0:00:05]} 25. Nc3 {[%clk 0:00:11]}  Bg7 {[%clk 0:00:04]} 26. Rd1 {[%clk 0:00:10]}  Rc8 {[%clk 0:00:05]} 27. Nd5 {[%clk 0:00:09]}  Bf8 {[%clk 0:00:06]} 28. Ne3 {[%clk 0:00:08]}  Be4 {[%clk 0:00:05]} 29. f3 {[%clk 0:00:08]}  Bc6 {[%clk 0:00:05]} 30. Kf2 {[%clk 0:00:08]}  e6 {[%clk 0:00:06]} 31. Ke2 {[%clk 0:00:08]}  Kg7 {[%clk 0:00:06]} 32. h4 {[%clk 0:00:07]}  a5 {[%clk 0:00:06]} 33. a4 {[%clk 0:00:05]}  Bc5 {[%clk 0:00:07]} 34. Ng4 {[%clk 0:00:03]}  Be8 {[%clk 0:00:05]} 35. Ne5 {[%clk 0:00:03]}  Bb4 {[%clk 0:00:05]} 36. Rc1 {[%clk 0:00:02]}  Rb8 {[%clk 0:00:05]} 37. Rc2 {[%clk 0:00:00]}  Ba3 {[%clk 0:00:05]} 0-1

[Event "January 2 Late 2024"]
[Site "https://www.chess.com"]
[Date "2024.01.02"]
[Round "3"]
[White "Bachmann, Axel"]
[Black "Hernando Rodrigo, Julio Antonio"]
[Result "1-0"]
[Board "78"]
[TimeControl "180+1"]
[WhiteFideId "3700488"]
[BlackFideId "2208350"]
[WhiteElo "2817"]
[BlackElo "2497"]
[WhiteTeam "PAR"]
[BlackTeam "ESP"]
[WhiteClock "0:01:30"]
[BlackClock "0:00:25"]

1. Nf3 {[%clk 0:02:54]}  Nf6 {[%clk 0:02:58]} 2. c4 {[%clk 0:02:54]}  g6 {[%clk 0:02:58]} 3. b3 {[%clk 0:02:54]}  Bg7 {[%clk 0:02:58]} 4. Bb2 {[%clk 0:02:55]}  O-O {[%clk 0:02:57]} 5. g3 {[%clk 0:02:54]}  d6 {[%clk 0:02:56]} 6. d4 {[%clk 0:02:53]}  e5 {[%clk 0:02:45]} 7. dxe5 {[%clk 0:02:52]}  Ng4 {[%clk 0:02:44]} 8. Bg2 {[%clk 0:02:48]}  Nc6 {[%clk 0:02:42]} 9. Nc3 {[%clk 0:02:44]}  dxe5 {[%clk 0:02:38]} 10. h3 {[%clk 0:02:42]}  Nf6 {[%clk 0:02:35]} 11. O-O {[%clk 0:02:38]}  Bd7 {[%clk 0:02:24]} 12. Nd5 {[%clk 0:02:29]}  Re8 {[%clk 0:02:20]} 13. Nd2 {[%clk 0:02:22]}  Qc8 {[%clk 0:02:01]} 14. Kh2 {[%clk 0:01:58]}  Nd4 {[%clk 0:01:58]} 15. e3 {[%clk 0:01:53]}  Nf5 {[%clk 0:01:58]} 16. Nxf6+ {[%clk 0:01:53]}  Bxf6 {[%clk 0:01:55]} 17. Ne4 {[%clk 0:01:54]}  Bg7 {[%clk 0:01:28]} 18. Nc5 {[%clk 0:01:49]}  Bc6 {[%clk 0:01:14]} 19. Bxc6 {[%clk 0:01:46]}  bxc6 {[%clk 0:01:15]} 20. Qg4 {[%clk 0:01:46]}  e4 {[%clk 0:01:05]} 21. Bxg7 {[%clk 0:01:43]}  Nxg7 {[%clk 0:01:06]} 22. Nxe4 {[%clk 0:01:36]}  f5 {[%clk 0:01:00]} 23. Nf6+ {[%clk 0:01:35]}  Kf7 {[%clk 0:00:59]} 24. Qh4 {[%clk 0:01:32]}  Rh8 {[%clk 0:00:25]} 25. Rad1 {[%clk 0:01:30]} 1-0

[Event "January 2 Late 2024"]
[Site "https://www.chess.com"]
[Date "2024.01.02"]
[Round "3"]
[White "Gutierrez Olivares, Daniel"]
[Black "Novozhilov, Semen"]
[Result "0-1"]
[Board "82"]
[TimeControl "180+1"]
[WhiteFideId "2264005"]
[BlackFideId "24289167"]
[WhiteElo "2491"]
[BlackElo "2739"]
[WhiteTeam "ESP"]
[BlackTeam "RUS"]
[WhiteClock "0:00:37"]
[BlackClock "0:02:03"]

1. Nf3 {[%clk 0:03:00]}  Nf6 {[%clk 0:02:59]} 2. g3 {[%clk 0:02:59]}  d5 {[%clk 0:03:00]} 3. c4 {[%clk 0:02:59]}  c6 {[%clk 0:03:01]} 4. Bg2 {[%clk 0:02:59]}  Bg4 {[%clk 0:03:01]} 5. b3 {[%clk 0:02:59]}  Nbd7 {[%clk 0:03:01]} 6. Bb2 {[%clk 0:02:59]}  Qc7 {[%clk 0:03:01]} 7. O-O {[%clk 0:02:57]}  e5 {[%clk 0:03:01]} 8. cxd5 {[%clk 0:02:56]}  cxd5 {[%clk 0:03:02]} 9. Nc3 {[%clk 0:02:55]}  a6 {[%clk 0:03:00]} 10. Rc1 {[%clk 0:02:54]}  Qd6 {[%clk 0:03:00]} 11. d3 {[%clk 0:02:28]}  Be7 {[%clk 0:02:57]} 12. h3 {[%clk 0:02:23]}  Be6 {[%clk 0:02:56]} 13. Ng5 {[%clk 0:02:23]}  O-O {[%clk 0:02:55]} 14. Nxe6 {[%clk 0:02:23]}  fxe6 {[%clk 0:02:55]} 15. e3 {[%clk 0:02:22]}  b5 {[%clk 0:02:55]} 16. Ne2 {[%clk 0:02:17]}  Rac8 {[%clk 0:02:54]} 17. g4 {[%clk 0:02:08]}  Qb6 {[%clk 0:02:52]} 18. Ng3 {[%clk 0:02:07]}  h6 {[%clk 0:02:50]} 19. Qd2 {[%clk 0:01:56]}  a5 {[%clk 0:02:45]} 20. a3 {[%clk 0:01:54]}  g5 {[%clk 0:02:38]} 21. Kh1 {[%clk 0:01:50]}  b4 {[%clk 0:02:38]} 22. a4 {[%clk 0:01:49]}  Nc5 {[%clk 0:02:38]} 23. Qd1 {[%clk 0:01:41]}  Qa6 {[%clk 0:02:38]} 24. Rxc5 {[%clk 0:01:34]}  Bxc5 {[%clk 0:02:36]} 25. Bxe5 {[%clk 0:01:35]}  Bd6 {[%clk 0:02:36]} 26. Ba1 {[%clk 0:01:21]}  Bxg3 {[%clk 0:02:31]} 27. fxg3 {[%clk 0:01:22]}  Nd7 {[%clk 0:02:32]} 28. Qd2 {[%clk 0:01:07]}  Qd6 {[%clk 0:02:30]} 29. Qb2 {[%clk 0:01:04]}  Rxf1+ {[%clk 0:02:26]} 30. Bxf1 {[%clk 0:01:04]}  Rc3 {[%clk 0:02:16]} 31. Qd2 {[%clk 0:00:51]}  Rc8 {[%clk 0:02:09]} 32. Qb2 {[%clk 0:00:50]}  d4 {[%clk 0:02:09]} 33. exd4 {[%clk 0:00:43]}  Qxg3 {[%clk 0:02:08]} 34. d5 {[%clk 0:00:42]}  e5 {[%clk 0:02:08]} 35. d4 {[%clk 0:00:40]}  Qf3+ {[%clk 0:02:03]} 36. Bg2 {[%clk 0:00:40]}  Qc3 {[%clk 0:02:03]} 37. Qb1 {[%clk 0:00:37]}  Qc1+ {[%clk 0:02:03]} 0-1

[Event "January 2 Late 2024"]
[Site "https://www.chess.com"]
[Date "2024.01.02"]
[Round "3"]
[White "Schnaider, Ilan"]
[Black "Kotyk, Michael"]
[Result "1-0"]
[Board "85"]
[TimeControl "180+1"]
[WhiteFideId "169013"]
[BlackFideId "16214501"]
[WhiteElo "2714"]
[BlackElo "2486"]
[WhiteTeam "ARG"]
[BlackTeam "GER"]
[WhiteClock "0:02:22"]
[BlackClock "0:02:20"]

1. e4 {[%clk 0:03:00]}  e5 {[%clk 0:02:58]} 2. Nf3 {[%clk 0:03:00]}  Nc6 {[%clk 0:02:58]} 3. d4 {[%clk 0:02:59]}  exd4 {[%clk 0:02:58]} 4. Nxd4 {[%clk 0:03:00]}  Nf6 {[%clk 0:02:58]} 5. Nxc6 {[%clk 0:02:59]}  bxc6 {[%clk 0:02:58]} 6. Bd3 {[%clk 0:02:58]}  d5 {[%clk 0:02:56]} 7. exd5 {[%clk 0:02:59]}  cxd5 {[%clk 0:02:55]} 8. O-O {[%clk 0:02:58]}  Be6 {[%clk 0:02:52]} 9. Re1 {[%clk 0:02:57]}  Bd6 {[%clk 0:02:50]} 10. Bb5+ {[%clk 0:02:53]}  Kf8 {[%clk 0:02:50]} 11. h3 {[%clk 0:02:50]}  Rb8 {[%clk 0:02:50]} 12. Bd3 {[%clk 0:02:48]}  c5 {[%clk 0:02:45]} 13. b3 {[%clk 0:02:48]}  c4 {[%clk 0:02:43]} 14. bxc4 {[%clk 0:02:46]}  dxc4 {[%clk 0:02:44]} 15. Bf1 {[%clk 0:02:44]}  Bb4 {[%clk 0:02:36]} 16. Bd2 {[%clk 0:02:32]}  Bxd2 {[%clk 0:02:28]} 17. Nxd2 {[%clk 0:02:33]}  c3 {[%clk 0:02:25]} 18. Nb3 {[%clk 0:02:28]}  Qxd1 {[%clk 0:02:23]} 19. Raxd1 {[%clk 0:02:27]}  Ke7 {[%clk 0:02:24]} 20. Nd4 {[%clk 0:02:23]}  Rhd8 {[%clk 0:02:22]} 21. Nc6+ {[%clk 0:02:23]}  Kf8 {[%clk 0:02:20]} 22. Rxd8+ {[%clk 0:02:22]} 1-0

[Event "January 2 Late 2024"]
[Site "https://www.chess.com"]
[Date "2024.01.02"]
[Round "3"]
[White "Peczely, Sebastian Zsombor"]
[Black "Do Valle Cardoso, Lucas"]
[Result "0-1"]
[Board "87"]
[TimeControl "180+1"]
[WhiteFideId "750964"]
[BlackFideId "2163144"]
[WhiteElo "2484"]
[BlackElo "2692"]
[WhiteTeam "HUN"]
[BlackTeam "BRA"]
[WhiteClock "0:01:44"]
[BlackClock "0:02:09"]

1. e4 {[%clk 0:02:57]}  e5 {[%clk 0:02:56]} 2. Nf3 {[%clk 0:02:54]}  Nc6 {[%clk 0:02:54]} 3. d4 {[%clk 0:02:54]}  exd4 {[%clk 0:02:54]} 4. Nxd4 {[%clk 0:02:55]}  Nf6 {[%clk 0:02:54]} 5. Nxc6 {[%clk 0:02:54]}  bxc6 {[%clk 0:02:55]} 6. e5 {[%clk 0:02:55]}  Qe7 {[%clk 0:02:55]} 7. Qe2 {[%clk 0:02:56]}  Nd5 {[%clk 0:02:56]} 8. c4 {[%clk 0:02:56]}  Ba6 {[%clk 0:02:55]} 9. b3 {[%clk 0:02:57]}  Qh4 {[%clk 0:02:55]} 10. Qc2 {[%clk 0:02:30]}  Bb4+ {[%clk 0:02:22]} 11. Nd2 {[%clk 0:02:15]}  Qd4 {[%clk 0:02:22]} 12. Bb2 {[%clk 0:02:10]}  Nc3 {[%clk 0:02:20]} 13. f4 {[%clk 0:01:44]}  Qe3+ {[%clk 0:02:09]} 0-1

[Event "January 2 Late 2024"]
[Site "https://www.chess.com"]
[Date "2024.01.02"]
[Round "3"]
[White "Marn, Jan"]
[Black "Zhu, Jiner"]
[Result "0-1"]
[Board "89"]
[TimeControl "180+1"]
[WhiteFideId "14619245"]
[BlackFideId "8608059"]
[WhiteElo "2483"]
[BlackElo "2681"]
[WhiteTeam "SLO"]
[BlackTeam "CHN"]
[WhiteClock "0:00:07"]
[BlackClock "0:01:21"]

1. Nc3 {[%clk 0:03:00]}  Nf6 {[%clk 0:02:58]} 2. e4 {[%clk 0:03:00]}  e5 {[%clk 0:02:59]} 3. f4 {[%clk 0:02:59]}  d5 {[%clk 0:02:55]} 4. fxe5 {[%clk 0:02:59]}  Nxe4 {[%clk 0:02:54]} 5. Qf3 {[%clk 0:03:00]}  Nxc3 {[%clk 0:02:53]} 6. bxc3 {[%clk 0:02:59]}  Be7 {[%clk 0:02:52]} 7. d4 {[%clk 0:02:59]}  c5 {[%clk 0:02:51]} 8. Ne2 {[%clk 0:02:52]}  Nc6 {[%clk 0:02:51]} 9. Be3 {[%clk 0:02:47]}  Be6 {[%clk 0:02:45]} 10. Ng3 {[%clk 0:02:47]}  Qa5 {[%clk 0:02:44]} 11. Bd2 {[%clk 0:02:39]}  Qa4 {[%clk 0:02:44]} 12. Nf5 {[%clk 0:02:27]}  Bxf5 {[%clk 0:02:29]} 13. Qxf5 {[%clk 0:02:28]}  cxd4 {[%clk 0:02:29]} 14. Bd3 {[%clk 0:02:29]}  dxc3 {[%clk 0:02:27]} 15. Bxc3 {[%clk 0:02:28]}  d4 {[%clk 0:02:22]} 16. Bd2 {[%clk 0:02:25]}  Bb4 {[%clk 0:02:20]} 17. O-O {[%clk 0:02:16]}  Bxd2 {[%clk 0:02:19]} 18. Qxf7+ {[%clk 0:02:16]}  Kd8 {[%clk 0:02:18]} 19. Qxb7 {[%clk 0:02:04]}  Rb8 {[%clk 0:02:18]} 20. Qxg7 {[%clk 0:02:03]}  Re8 {[%clk 0:02:18]} 21. Qxh7 {[%clk 0:01:43]}  Nxe5 {[%clk 0:02:15]} 22. Rab1 {[%clk 0:01:29]}  Rxb1 {[%clk 0:02:10]} 23. Rxb1 {[%clk 0:01:30]}  Bb4 {[%clk 0:01:42]} 24. Qh4+ {[%clk 0:00:53]}  Be7 {[%clk 0:01:41]} 25. Qe4 {[%clk 0:00:46]}  Bd6 {[%clk 0:01:29]} 26. Bb5 {[%clk 0:00:35]}  Qxa2 {[%clk 0:01:27]} 27. Qa8+ {[%clk 0:00:34]}  Kc7 {[%clk 0:01:26]} 28. Qxe8 {[%clk 0:00:30]}  Qxb1+ {[%clk 0:01:26]} 29. Bf1 {[%clk 0:00:31]}  d3 {[%clk 0:01:23]} 30. h4 {[%clk 0:00:07]}  dxc2 {[%clk 0:01:21]} 0-1

[Event "January 2 Late 2024"]
[Site "https://www.chess.com"]
[Date "2024.01.02"]
[Round "3"]
[White "Fantinel, Thibault"]
[Black "Petre, Nad-Titus"]
[Result "0-1"]
[Board "91"]
[TimeControl "180+1"]
[WhiteFideId "663395"]
[BlackFideId "1204165"]
[WhiteElo "2674"]
[BlackElo "2467"]
[WhiteTeam "FRA"]
[BlackTeam "ROU"]
[WhiteClock "0:00:03"]
[BlackClock "0:01:05"]

1. e4 {[%clk 0:03:00]}  e5 {[%clk 0:02:56]} 2. Nf3 {[%clk 0:03:00]}  Nc6 {[%clk 0:02:57]} 3. Bc4 {[%clk 0:03:01]}  Nf6 {[%clk 0:02:56]} 4. d3 {[%clk 0:03:01]}  h6 {[%clk 0:02:55]} 5. O-O {[%clk 0:02:57]}  g6 {[%clk 0:02:53]} 6. Re1 {[%clk 0:02:51]}  Bg7 {[%clk 0:02:53]} 7. c3 {[%clk 0:02:48]}  O-O {[%clk 0:02:52]} 8. b4 {[%clk 0:02:48]}  a6 {[%clk 0:02:49]} 9. Nbd2 {[%clk 0:02:36]}  d5 {[%clk 0:02:49]} 10. Bb3 {[%clk 0:02:36]}  Be6 {[%clk 0:02:45]} 11. a3 {[%clk 0:02:10]}  Qd7 {[%clk 0:02:44]} 12. Qc2 {[%clk 0:02:05]}  Rad8 {[%clk 0:02:44]} 13. Nf1 {[%clk 0:02:06]}  Bg4 {[%clk 0:02:35]} 14. N3d2 {[%clk 0:02:03]}  d4 {[%clk 0:02:26]} 15. c4 {[%clk 0:01:56]}  Nh5 {[%clk 0:02:25]} 16. c5 {[%clk 0:01:47]}  Be6 {[%clk 0:02:22]} 17. Nc4 {[%clk 0:01:43]}  f5 {[%clk 0:02:17]} 18. Ng3 {[%clk 0:01:23]}  Nxg3 {[%clk 0:02:08]} 19. hxg3 {[%clk 0:01:24]}  f4 {[%clk 0:02:05]} 20. gxf4 {[%clk 0:01:14]}  exf4 {[%clk 0:02:06]} 21. f3 {[%clk 0:01:12]}  Kh8 {[%clk 0:02:01]} 22. Bd2 {[%clk 0:01:03]}  Rde8 {[%clk 0:01:55]} 23. Kf2 {[%clk 0:01:03]}  Qd8 {[%clk 0:01:50]} 24. Rh1 {[%clk 0:01:03]}  Qg5 {[%clk 0:01:50]} 25. Rag1 {[%clk 0:00:59]}  Qg3+ {[%clk 0:01:45]} 26. Kf1 {[%clk 0:00:59]}  h5 {[%clk 0:01:44]} 27. Be1 {[%clk 0:00:50]}  Qg5 {[%clk 0:01:44]} 28. Bh4 {[%clk 0:00:42]}  Qh6 {[%clk 0:01:44]} 29. Nd2 {[%clk 0:00:39]}  Bxb3 {[%clk 0:01:35]} 30. Qxb3 {[%clk 0:00:40]}  Be5 {[%clk 0:01:29]} 31. a4 {[%clk 0:00:40]}  g5 {[%clk 0:01:25]} 32. Bf2 {[%clk 0:00:39]}  Kg7 {[%clk 0:01:25]} 33. b5 {[%clk 0:00:39]}  axb5 {[%clk 0:01:25]} 34. axb5 {[%clk 0:00:40]}  Nd8 {[%clk 0:01:21]} 35. Nc4 {[%clk 0:00:41]}  Bf6 {[%clk 0:01:20]} 36. e5 {[%clk 0:00:38]}  Be7 {[%clk 0:01:19]} 37. Bxd4 {[%clk 0:00:39]}  Ne6 {[%clk 0:01:20]} 38. Bf2 {[%clk 0:00:30]}  Bxc5 {[%clk 0:01:18]} 39. Nd2 {[%clk 0:00:13]}  Bxf2 {[%clk 0:01:05]} 40. Kxf2 {[%clk 0:00:14]}  Nd4 {[%clk 0:01:06]} 41. Qc4 {[%clk 0:00:14]}  Qb6 {[%clk 0:01:06]} 42. Kf1 {[%clk 0:00:12]}  Nf5 {[%clk 0:01:05]} 43. Qe4 {[%clk 0:00:03]}  Ng3+ {[%clk 0:01:05]} 0-1

[Event "January 2 Late 2024"]
[Site "https://www.chess.com"]
[Date "2024.01.02"]
[Round "3"]
[White "Sevgi, Volkan"]
[Black "Flynn, Jacob"]
[Result "1-0"]
[Board "93"]
[TimeControl "180+1"]
[WhiteFideId "6325335"]
[BlackFideId "2509393"]
[WhiteElo "2668"]
[BlackElo "2466"]
[WhiteTeam "TUR"]
[BlackTeam "IRL"]
[WhiteClock "0:00:36"]
[BlackClock "0:01:38"]

1. e4 {[%clk 0:03:00]}  e5 {[%clk 0:03:00]} 2. Nc3 {[%clk 0:02:59]}  Nf6 {[%clk 0:03:00]} 3. f4 {[%clk 0:02:59]}  d5 {[%clk 0:03:00]} 4. fxe5 {[%clk 0:02:59]}  Nxe4 {[%clk 0:02:59]} 5. Qf3 {[%clk 0:03:00]}  f5 {[%clk 0:02:58]} 6. d3 {[%clk 0:02:46]}  Nxc3 {[%clk 0:02:58]} 7. bxc3 {[%clk 0:02:47]}  d4 {[%clk 0:02:59]} 8. Ne2 {[%clk 0:01:57]}  Nc6 {[%clk 0:02:58]} 9. Qf4 {[%clk 0:01:26]}  Bc5 {[%clk 0:02:47]} 10. Bb2 {[%clk 0:01:17]}  g5 {[%clk 0:02:36]} 11. Qf3 {[%clk 0:01:15]}  dxc3 {[%clk 0:02:27]} 12. Qh5+ {[%clk 0:01:12]}  Kf8 {[%clk 0:02:20]} 13. Bxc3 {[%clk 0:01:08]}  Be6 {[%clk 0:02:19]} 14. h4 {[%clk 0:01:03]}  Nd4 {[%clk 0:02:00]} 15. Bxd4 {[%clk 0:00:54]}  Bxd4 {[%clk 0:01:59]} 16. Qh6+ {[%clk 0:00:53]}  Kf7 {[%clk 0:01:59]} 17. Nxd4 {[%clk 0:00:54]}  Qxd4 {[%clk 0:01:53]} 18. Qf6+ {[%clk 0:00:54]}  Kg8 {[%clk 0:01:46]} 19. Qxe6+ {[%clk 0:00:54]}  Kg7 {[%clk 0:01:46]} 20. Qf6+ {[%clk 0:00:50]}  Kg8 {[%clk 0:01:46]} 21. Qxg5+ {[%clk 0:00:51]}  Kf7 {[%clk 0:01:45]} 22. Qxf5+ {[%clk 0:00:49]}  Kg7 {[%clk 0:01:45]} 23. Qf6+ {[%clk 0:00:45]}  Kg8 {[%clk 0:01:46]} 24. Rh3 {[%clk 0:00:36]}  Qxa1+ {[%clk 0:01:38]} 25. Kd2 {[%clk 0:00:36]} 1-0